Cogmind - Beta 13 @@@ ROGUE MODE // 2024.03.16 @ 23:20:55 Player: Moya Result: Smashed by cave-in Performance ------------- Evolutions (0) 0 Regions Visited (2) 400 Robots Destroyed (24) 120 Value Destroyed (620) 620 Prototype IDs (0) 0 Alien Tech Used (0) 0 Bonus (-42) -42 TOTAL SCORE: 1098 Bonus ------- Friendly Fire -42 Cogmind --------- Core Integrity 0/250 Matter 290/300 Energy 249/250 System Corruption 0% Temperature Cool (0) Movement Rolling (120) Ox1 Location -10/Subcaves Parts ------- > --- POWER (1) -------- Ion Engine > --- PROPULSION (2) --- Wheel Subdweller Monowheel > --- UTILITY (2) ------ Medium Storage Unit Makeshift Light Armor Plating > --- WEAPON (2) ------- Barrage Gun Barrage Gun > --- INVENTORY (10) --- Ion Engine Improved Heat Sink Humpback Subdweller Beam Cannon Heavy Battle Rifle Subdweller Shrapnel Launcher Flamer Scrap Shield Fragment (38) Peak State ------------ > --- POWER ------------ Light Angular Momentum Engine > --- PROPULSION ------- Subdweller Monowheel Subdweller Monowheel > --- UTILITY ---------- Medium Storage Unit Makeshift Light Armor Plating > --- WEAPON ----------- Subdweller Beam Cannon Barrage Gun > --- INVENTORY -------- Ion Engine Light Nuclear Core Subdweller Monowheel Improved Heat Sink Disposable Heat Sink Subdweller Optics Subdweller Beam Cannon Subdweller Machine Gun Heavy Battle Rifle Scrap Shield Fragment [Rating: 21] Favorites ----------- Power Light Angular Momentum Engine Engine Light Angular Momentum Engine Power Core Light Nuclear Core Propulsion Subdweller Monowheel Wheel Subdweller Monowheel Utility Medium Storage Unit Device ECM Suite Storage Medium Storage Unit Processor Visual Processing Unit Hackware Makeshift System Shield Protection Makeshift Light Armor Plating Weapon Barrage Gun Energy Gun EM Pulse Gun Energy Cannon Beam Cannon Ballistic Gun Barrage Gun Launcher Subdweller Shrapnel Launcher Build | -11 -10 -10 ------- Run | Yrd Mat Sub Slots Evolved . | . . . Power . | . . . Propulsion . | . . . Utility . | . . . Weapon . | . . . Parts Attached 44 | 6 10 28 Power 5 | 1 1 3 Engine 4 | 1 1 2 Core 1 | . . 1 Reactor . | . . . Propulsion 14 | 2 3 9 Treads . | . . . Leg . | . . . Wheel 14 | 2 3 9 Hover . | . . . Flight . | . . . Utility 10 | 1 2 7 Device 3 | . 1 2 Storage 3 | 1 1 1 Processor 1 | . . 1 Hackware 1 | . . 1 Protection 2 | . . 2 Artifact . | . . . Weapon 15 | 2 4 9 Energy Gun 2 | 1 . 1 Energy Cannon 3 | . 1 2 Ballistic Gun 9 | 1 3 5 Ballistic Cannon . | . . . Launcher 1 | . . 1 Special Weapon . | . . . Impact Weapon . | . . . Slashing Weapon . | . . . Piercing Weapon . | . . . Special Melee Weapon . | . . . Unidentified Prototypes . | . . . Parts Lost 7 | . 2 5 Power 1 | . . 1 Propulsion 1 | . . 1 Utility 2 | . . 2 Weapon 3 | . 2 1 Highest Loss Streak 2 | . 1 2 To Critical Strikes . | . . . Average Slot Usage (%) 98 | . 98 98 Engine 13 | . 14 13 Wheel 27 | . 28 27 Device 8 | . 13 6 Storage 13 | . 14 13 Protection 4 | . . 6 Energy Cannon 10 | . 6 11 Ballistic Gun 16 | . 20 14 Naked Turns . | . . . Heaviest Build 34 | 14 22 34 Greatest Support 40 | 32 32 40 Greatest Overweight (x) 2 | . 1 2 Average Overweight (x) . | . . . Largest Inventory Capacity 10 | 8 10 10 Average Capacity 9 | 6 9 9 Most Carried 10 | 2 9 10 Average Carried 7 | 1 6 8 Final Capacity 10 | 8 10 10 Final Carried 9 | 2 7 9 Class Distribution -------------------- 72% | Mutant 19% | Scavenger-Mutant 7% | Derelict-Mutant Dominant Class ---------------- Mutant | -10/Materials Mutant | -10/Subcaves Resources | -11 -10 -10 ----------- Run | Yrd Mat Sub Matter Collected 1455 | 153 493 809 Remotely . | . . . Salvage Created 745 | . 498 247 Parts 43 | . 34 9 Haulers Intercepted 1 | . 1 . Recyclers Shooed . | . . . Parts Field Recycled . | . . . Retrieved Matter . | . . . Parts Self-Destructed 10 | . . 10 Prevented . | . . . Kills | -11 -10 -10 ------- Run | Yrd Mat Sub Combat Hostiles Destroyed 21 | . 13 8 Guns 15 | . 13 2 Cannons 4 | . . 4 AOE 2 | . . 2 Classes Destroyed 6 | . 5 1 Tunneler 1 | . 1 . Hauler 1 | . 1 . Watcher 1 | . 1 . Swarmer 7 | . 5 2 Grunt 8 | . 8 . Subdweller 6 | . . 6 Best Kill Streak 4 | . 4 2 Combat Bots Only 3 | . 3 2 Max Kills in Single Turn 2 | . 2 1 Gunslinging 1 | . 1 . Exploded 1 | . . 1 Melee . | . . . Uniques/NPCs Destroyed . | . . . Combat | -11 -10 -10 -------- Run | Yrd Mat Sub Hostile Shots Fired 133 | . 84 49 Missed 39 | . 22 17 Damage Taken 1492 | . 607 885 Core 309 | . 151 158 Absorbed by Shields . | . . . Core Remaining (%) 100 | 100 . . Volleys Fired 124 | . 43 81 Largest 2 | . 2 2 Hottest 110 | . 80 110 Shots Fired 232 | . 75 157 Gun 158 | . 73 85 Cannon 62 | . 2 60 Launcher 12 | . . 12 Special . | . . . Kinetic 167 | . 72 95 Thermal 62 | . 2 60 Explosive . | . . . Electromagnetic 3 | . 1 2 Robot Hit Streak 5 | . 5 5 Robot Miss Streak 6 | . 6 3 Penetration Max . | . . . Secondary Targets 3 | . 3 . Max Gunslinging Chain 1 | . 1 . Shots Hit Robots 77 | . 36 41 Core Hits 37 | . 24 13 Critical Kills 1 | . 1 . Critical Parts Destroyed . | . . . Critical Strikes 1 | . 1 . Destroy 1 | . 1 . Melee Attacks . | . . . Impact . | . . . Slashing . | . . . Piercing . | . . . Sneak Attacks . | . . . Combat Hostiles . | . . . Follow-up Attacks . | . . . Damage Inflicted 1476 | . 502 974 Guns 816 | . 466 350 Cannons 283 | . . 283 Explosions 341 | . . 341 Melee . | . . . Ramming 36 | . 36 . Kinetic 1125 | . 446 679 Thermal 283 | . . 283 Explosive . | . . . Electromagnetic 32 | . 20 12 Impact . | . . . Slashing . | . . . Piercing . | . . . Highest Corruption . | . . . Average Corruption . | . . . Corruption Purged . | . . . Corruption Blocked . | . . . Overload Shots . | . . . Overflow Damage . | . . . Projectiles . | . . . Explosions . | . . . Melee . | . . . Knockbacks . | . . . Impact . | . . . Kinetic . | . . . Secondary . | . . . Self-Inflicted Damage 119 | . 16 103 Shots 3 | . . 3 Rammed 5 | . 5 . Targets Rammed 5 | . 5 . Kicked . | . . . Crushed . | . . . Highest Temperature 93 | . 18 93 Average Temperature 23 | . 9 26 Received Heat Transfer 252 | . 180 72 Siege Activations . | . . . Robots Corrupted . | . . . Combat Hostiles . | . . . Parts Fried . | . . . Impact Corruptions . | . . . Robots Melted . | . . . Combat Hostiles . | . . . Parts Melted . | . . . Heat Transferred 518 | . . 518 Parts Sabotaged . | . . . Parts Stolen . | . . . Parts Stripped . | . . . Power Chain Reactions . | . . . Alert | -11 -10 -10 ------- Run | Yrd Mat Sub Peak Influence 219 | . 219 . Initial . | . . . Average 101 | . 108 . Maximum Alert Level 1 | . 1 . Low Security (%) 93 | 100 92 . Level 1 6 | . 7 . Level 2 . | . . . Level 3 . | . . . Level 4 . | . . . Level 5 . | . . . High Security . | . . . Max Security . | . . . Squads Dispatched 3 | . 3 . Investigation . | . . . Extermination . | . . . Reinforcement 3 | . 3 . Assault . | . . . Garrison . | . . . Intercept . | . . . Searches Triggered . | . . . Construction Impeded . | . . . Haulers Reinforced . | . . . Active Scanning Responses . | . . . Cargo Convoy Interrupts . | . . . Stealth | -11 -10 -10 --------- Run | Yrd Mat Sub Distress Signals 1 | . 1 . Communications Jammed . | . . . Distress Signals . | . . . Times Spotted 44 | . 20 24 Peak Tracking Total 7 | . 6 7 Tactical Retreats 1 | . 1 . Traps | -11 -10 -10 ------- Run | Yrd Mat Sub Traps Triggered 1 | . . 1 Indirectly . | . . . Trap Hack Attempts . | . . . Triggered . | . . . Disarmed . | . . . Reprogrammed . | . . . Reused . | . . . Traps Extracted . | . . . Installed . | . . . Triggered 1 | . . 1 Machines | -11 -10 -10 ---------- Run | Yrd Mat Sub Machines Disabled . | . . . Max in Single Turn . | . . . Machines Repaired . | . . . Machines Dismantled . | . . . Machines Sabotaged . | . . . Overloaded Fab Kills . | . . . Hacking | -11 -10 -10 --------- Run | Yrd Mat Sub Machines Accessed 2 | . 2 . Terminals 2 | . 2 . Fabricators . | . . . Repair Stations . | . . . Recycling Units . | . . . Scanalyzers . | . . . Garrison Access . | . . . Total Hacks 2 | . 2 . Successful 2 | . 2 . Failed . | . . . Catastrophic . | . . . Database Lockouts . | . . . Manual . | . . . Terminals 2 | . 2 . Fabricators . | . . . Repair Stations . | . . . Recycling Units . | . . . Scanalyzers . | . . . Garrison Access . | . . . Terminal Hacks 2 | . 2 . Record 1 | . 1 . Reinforcement Status 1 | . 1 . Fabricator Hacks . | . . . Repair Station Hacks . | . . . Recycling Unit Hacks . | . . . Scanalyzer . | . . . Garrison Access Hacks . | . . . Unauthorized Hacks . | . . . Terminals . | . . . Fabricators . | . . . Repair Stations . | . . . Recycling Units . | . . . Scanalyzers . | . . . Garrison Access . | . . . Data Cores Recovered . | . . . Used . | . . . Hacking Detections . | . . . Full Trace Events . | . . . Feedback Events . | . . . Feedback Blocked . | . . . Robot Schematics Acquired . | . . . Robots Built . | . . . Authchips . | . . . Time . | . . . Total Robot Build Rating . | . . . Part Schematics Acquired . | . . . Parts Built . | . . . Authchips . | . . . Time . | . . . Total Part Build Rating . | . . . Parts Repaired . | . . . Time . | . . . Parts Recycled . | . . . Recycled Matter . | . . . Retrieved Matter . | . . . Retrieved Components . | . . . Parts Scanalyzed . | . . . Part Schematics Acquired . | . . . Parts Damaged . | . . . Bothacking | -11 -10 -10 ------------ Run | Yrd Mat Sub Used RIF Installer . | . . . Robots Hacked . | . . . Non-combat . | . . . Combat . | . . . Robot Hacks Applied . | . . . Relay Couplers Released . | . . . Fabnet Peak Effective % . | . . . Robots Rewired . | . . . Allies Hacked . | . . . Hacks Repelled . | . . . Allies | -11 -10 -10 -------- Run | Yrd Mat Sub Total Allies . | . . . Largest Group . | . . . Highest-Rated Group . | . . . Highest-Rated Ally . | . . . Total Orders . | . . . Ally Attacks . | . . . Total Damage . | . . . Kills . | . . . Allies Corrupted . | . . . Allies Melted . | . . . Intel | -11 -10 -10 ------- Run | Yrd Mat Sub Robot Analysis Total . | . . . Derelict Logs Recovered 2 | . . 2 Drone Launches . | . . . Drone Recoveries . | . . . Exploration | -11 -10 -10 ------------- Run | Yrd Mat Sub Turns Passed 3183 | 73 978 2132 Spaces Moved 2242 | 65 570 1607 Core 4 | 4 . . Treads . | . . . Legs . | . . . Wheels 2238 | 61 570 1607 Hover . | . . . Flight . | . . . Fastest Speed 50 | 50 90 95 Average Speed 107 | 96 95 111 Slowest Speed 120 | 100 100 120 Overloaded Moves . | . . . Propulsion Burnouts . | . . . Robots Hopped . | . . . Cave-ins Triggered 1 | . . 1 Exploration Rate (%) 46 | 5 70 63 Regions Visited 2 Branch Regions 1 Pre-discovered Areas 1 | . . 1 Known Exits Taken . | . . . Unknown Exits Taken 2 | 1 1 . Scrap Searched 15 | . . 15 Spaces Dug . | . . . Terrain Destroyed 178 | . . 178 Melee . | . . . Projectile 4 | . . 4 AOE 174 | . . 174 Terrain Rammed . | . . . Walls Destroyed . | . . . Machines Disabled . | . . . Actions | -11 -10 -10 --------- Run | Yrd Mat Sub Total 2795 | 72 933 1790 Wait 323 | . 286 37 Move 2240 | 64 570 1606 Hop . | . . . Pick Up 27 | 2 11 14 Fast Attach 11 | 6 . 5 Attach 9 | . 4 5 Detach 3 | . 1 2 Swap 24 | . 6 18 Drop 27 | . 8 19 Fire 124 | . 43 81 Melee . | . . . Ram 4 | . 4 . Kick . | . . . Crush . | . . . Escape Stasis . | . . . Rewire 3 | . . 3 Trap . | . . . Miscellaneous . | . . . Route ------- -11/Scrapyard -10/Materials (discovered 3 exits: [*Mat] / [*Min] / [*Sub]) -10/Subcaves (discovered 1 exit: [*Mat]) History --------- Turn | Location | Event 21 | -11/Scrapyard | Discovered new exit (range 16) 74 | -11/Scrapyard | Entered Materials 158 | -10/Materials | Discovered new exit (range 16) 271 | -10/Materials | Discovered new exit (range 9) 303 | -10/Materials | Build established: Mutant 600 | -10/Materials | Core integrity fell below 50% 1028 | -10/Materials | Discovered new exit (range 5) 1052 | -10/Materials | Entered Subcaves 1095 | -10/Subcaves | Learned location of Zion (-7) 1095 | -10/Subcaves | Met a Zionite searching for "candidates" 1269 | -10/Subcaves | Ambushed by swarm of Subdwellers 1269 | -10/Subcaves | Ambushed by Subdwellers from Twisted Machinery 1269 | -10/Subcaves | Ambushed by Subdwellers from Twisted Machinery 1472 | -10/Subcaves | Discovered new exit (range 6) 1575 | -10/Subcaves | Build established: Scavenger-Mutant 1793 | -10/Subcaves | Shifting Twisted Machinery released Sub. Beam Cannon 1881 | -10/Subcaves | Shifting Twisted Machinery released Barrage Gun 1932 | -10/Subcaves | Shifting Twisted Machinery released Sub. Beam Cannon 2100 | -10/Subcaves | Core integrity fell below 20% 2346 | -10/Subcaves | A swath of the cavern ceiling suddenly collapsed 2618 | -10/Subcaves | Build established: Mutant 2636 | -10/Subcaves | A swath of the cavern ceiling suddenly collapsed 2779 | -10/Subcaves | Shifting Twisted Machinery released Battle Cannon 2834 | -10/Subcaves | Shifting Twisted Machinery released Sub. Optics 2914 | -10/Subcaves | Ambushed by Subdweller buried in earth 3016 | -10/Subcaves | Ambushed by Subdweller buried in earth 3016 | -10/Subcaves | Ambushed by Subdweller buried in earth 3028 | -10/Subcaves | Ambushed by Subdweller buried in earth 3184 | -10/Subcaves | Crushed by falling debris 3184 | -10/Subcaves | Smashed by cave-in Last Messages --------------- 03029_ 57-0NJ(R): "NAT20!" 03036_ Acquired 9 matter. 03038_ Sub. Monowheel destroyed. 03042_ Lgt. Angular Momentum Engine destroyed. 03060_ Acquired 49 matter. 03068_ Acquired 39 matter. 03069_ Acquired 3 matter. 03071_ Acquired 22 matter. 03072_ Acquired 109 matter. 03076_ Acquired 58 matter. 03078_ Acquired 6 matter. 03091_ 57-0NJ(R) destroyed. 03094_ Extracted 1 energy. 03097_ Acquired Broken Wheel. 03103_ Acquired 18 matter. 03112_ Acquired 2 matter. 03117_ Acquired 14 matter. 03128_ Acquired Ion Engine. 03184_ The unstable cave ceiling collapses. 03184_ Crushed by falling debris. Map ----- +----------------------------------------------------+ | ?????????????????????????????????????????????????? | | ?????????????????????????????????????????????????? | | ?????????????????????????????????????????????????? | | ?????????????????????????????????????????????????? | | ?????????????????????????????????????????????????? | | ?????????????????????????????????????????????????? | | ?????????????????????????????????????????????????? | | ?????????????????????????????????????????????????? | | ???????????????##?????????????????????????###?###? | | #??????????#### ##??????????????????#####?# ### ## | | ##????????## ##????####?######### ### | | "########## #??### ### # #" ! | | ###= # # ### #??# " & | | %! ## ##??# # # ###" % * | | # ## ####### ############ ##?# !*! | | ##### ### ##?#;;; ;"#?????????####??## & = | | ## # & ### ####; ##????????????????##&&& | | ;####??????????????## | | # # ### # ##??????????????# | | % ## #### #?# #?????????????##" | | ### ##### #?# ##????????????# "" | | ## #####?### ## #????????????## " | | ## ##????#### ##????????????### " | | #??????## ##?????????????# | | #??????# #????????????## | | #??????# @ #????????????# " | | ##??????# # #????????????# " | | ##### ##???????# #????????????##" | | #???## ###????????## #?????????????## | | ?????####???????????# ####??????????????#" | | ????????????????????# #????????????????##" | | ????????????????????### ####???????????????## " | | ??????????????????????#### #????????????????### | | ??????????????????????????##????????????????#" | | ????????????????????????????????????????????#" ## | | ????????????????????????????????????????????#" ?# | | ????????????????????????????????????????????## #?? | | ?????????????????????????????????????????????##??? | | ?????????????????????????????????????????????????# | | ??????????????????????????????????????????????#### | | ??????????????????????????????????????????????# | | ??????????????????????????????????????????????## | | ??????????????????????????????????????????????## | | ??????????????????????????????????????????????# | | ??????????????????????????????######??????????## | | ?????????????????????????????##&%!%#?????#####?# | | ?????????????????????????????#*&["###?#### ### | | ?????????????????????????????#%##### ## | | ???????????????????????????###![& ## | | ???????????????????????????# ## #### | +----------------------------------------------------+ Best States ------------- Heat Dissipation 39 Energy Generation 18 Energy Capacity 250 Matter Stores 300 Matter Capacity 300 Sight Range 21 Terrain Scan Density 10 ECM Strength 1 Armor Coverage 800 Evasion (%) 42 Defensive Hacking 11 Item Schematics ----------------- None Robot Schematics ------------------ None Fabricated ------------ Nothing Alien Tech Used ----------------- None Achievements -------------- None Challenges ------------ None Game ------ Seed SubdwellerEfficiencyOptics Manual? 0 Play Time 00:34:33 Cumulative 10.1 hours Start 2024.03.16 @ 22:47:19 End 2024.03.16 @ 23:20:55 Sessions 1 Manual Loads 0 Difficulty Rogue Special Mode None Game No. 9 Rogue 2 Adventurer 7 Explorer 0 Win Type - Total 0 Types 0/0/0/0/0/0/0/0/0 Lore% 2 Gallery% 19 Achievement% 14 Wizard Run 0 Options --------- Layout 0 ASCII 0 Keyboard 1 Movement Vi Keybinds 0 Fullscreen 2 Font 16/TamsynBold Map View 32x25 Zoom Use 96% Tactical HUD 1 Map Filters NONE Filters NONE Steam 1 RUN: 51e50477-f6e3-4e24-9fdb-9891fa075990